[Event "FIDE Women World Blitz 2021"]
[Site "Warsaw"]
[Date "2021.12.30"]
[Round "16.5"]
[White "Shuvalova, Polina"]
[Black "Abdumalik, Zhansaya"]
[Result "1-0"]
[ECO "C77"]
[WhiteElo "2515"]
[BlackElo "2507"]
[Annotator "ChessBase"]
[PlyCount "139"]
[EventDate "2021.12.29"]
[EventType "swiss"]
[EventCountry "POL"]
[Tiebreak "Cut1 Buchholz"]
[SourceTitle "playchess.com"]
[Source "ChessBase"]
[SourceQuality "1"]
[TimeControl "180+2"]

1. e4 {[%emt 0:00:01]} e5 {[%emt 0:00:01]} 2. Nf3 {[%emt 0:00:01]} Nc6 {
[%emt 0:00:00]} 3. Bb5 {[%emt 0:00:02]} a6 {[%emt 0:00:01]} 4. Ba4 {[%emt 0:00:
01]} Nf6 {[%emt 0:00:01]} 5. O-O {[%emt 0:00:01]} Be7 {[%emt 0:00:01]} 6. d3 {
[%emt 0:00:05]} b5 {[%emt 0:00:02]} 7. Bb3 {[%emt 0:00:01]} d6 {[%emt 0:00:01]}
8. a3 {[%emt 0:00:01]} O-O {[%emt 0:00:03]} 9. Nc3 {[%emt 0:00:01]} Na5 {
[%emt 0:00:02]} 10. Ba2 {[%emt 0:00:02]} Be6 {[%emt 0:00:01]} 11. b4 {[%emt 0:
00:20]} Bxa2 {[%emt 0:00:02]} 12. Rxa2 {[%emt 0:00:02]} Nc6 {[%emt 0:00:01]}
13. Bg5 {[%emt 0:00:04]} Ng4 {[%emt 0:00:08]} 14. Bxe7 {[%emt 0:00:06]} Qxe7 {
[%emt 0:00:01]} 15. Nd5 {[%emt 0:00:03]} Qd8 {[%emt 0:00:02]} 16. c4 {[%emt 0:
00:15]} Ne7 {[%emt 0:00:02]} 17. h3 {[%emt 0:00:04]} Nh6 {[%emt 0:00:18]} 18.
Rc2 {[%emt 0:00:12]} f5 {[%emt 0:00:08]} 19. Ng5 {[%emt 0:00:08]} Qd7 {[%emt 0:
00:18]} 20. cxb5 {[%emt 0:00:01]} Nxd5 {[%emt 0:00:04]} 21. exd5 {[%emt 0:00:
02]} Qxb5 {[%emt 0:00:05]} 22. Ne6 {[%emt 0:00:07]} Qxd5 {[%emt 0:00:08]} 23.
Nxf8 {[%emt 0:00:08]} Rxf8 {[%emt 0:00:01]} 24. Rxc7 {[%emt 0:00:02]} f4 {
[%emt 0:00:02]} 25. Qc2 {[%emt 0:00:14]} f3 {[%emt 0:00:47]} 26. Qc4 {[%emt 0:
00:01]} Qxc4 {[%emt 0:00:00]} 27. dxc4 {[%emt 0:00:03]} fxg2 {[%emt 0:00:01]}
28. Kxg2 {[%emt 0:00:03]} Nf5 {[%emt 0:00:01]} 29. Rd1 {[%emt 0:00:03]} Nh4+ {
[%emt 0:00:02]} 30. Kf1 {[%emt 0:00:10]} Nf5 {[%emt 0:00:01]} 31. Ke2 {[%emt 0:
00:10]} Nd4+ {[%emt 0:00:01]} 32. Kf1 {[%emt 0:00:31]} Rf3 {[%emt 0:00:15]} 33.
c5 {[%emt 0:00:00]} dxc5 {[%emt 0:00:02]} 34. bxc5 {[%emt 0:00:00]} Rxh3 {
[%emt 0:00:02]} 35. Kg2 {[%emt 0:00:00]} Rxa3 {[%emt 0:00:02]} 36. Rb1 {
[%emt 0:00:04]} h5 {[%emt 0:00:02]} 37. Rbb7 {[%emt 0:00:11]} Ne6 {[%emt 0:00:
02]} 38. Re7 {[%emt 0:00:17]} Nf4+ {[%emt 0:00:03]} 39. Kh2 {[%emt 0:00:06]}
Kh7 {[%emt 0:00:05]} 40. Rxg7+ {[%emt 0:00:01]} Kh6 {[%emt 0:00:01]} 41. Rge7 {
[%emt 0:00:13]} Ng6 {[%emt 0:00:20]} 42. Re6 {[%emt 0:00:02]} Ra4 {[%emt 0:00:
08]} 43. f3 {[%emt 0:00:07]} Rh4+ {[%emt 0:00:06]} 44. Kg3 {[%emt 0:00:03]} Rc4
{[%emt 0:00:06]} 45. Rbb6 {[%emt 0:00:02]} h4+ {[%emt 0:00:01]} 46. Kh3 {
[%emt 0:00:02]} Kh5 {[%emt 0:00:00]} 47. Rxg6 {[%emt 0:00:04]} Rc3 {[%emt 0:00:
04]} 48. Rgf6 {[%emt 0:00:06]} Kg5 {[%emt 0:00:00]} 49. Rg6+ {[%emt 0:00:03]}
Kh5 {[%emt 0:00:01]} 50. Rh6+ {[%emt 0:00:01]} Kg5 {[%emt 0:00:01]} 51. Rbg6+ {
[%emt 0:00:01]} Kf5 {[%emt 0:00:02]} 52. Rf6+ {[%emt 0:00:05]} Kg5 {[%emt 0:00:
01]} 53. Kg2 {[%emt 0:00:04]} Rxc5 {[%emt 0:00:05]} 54. Rfg6+ {[%emt 0:00:02]}
Kf5 {[%emt 0:00:01]} 55. Rxa6 {[%emt 0:00:01]} Rc2+ {[%emt 0:00:01]} 56. Kh3 {
[%emt 0:00:02]} Rc3 {[%emt 0:00:01]} 57. Kg2 {[%emt 0:00:04]} Rc2+ {[%emt 0:00:
01]} 58. Kg1 {[%emt 0:00:01]} Rc1+ {[%emt 0:00:01]} 59. Kf2 {[%emt 0:00:00]}
Rc2+ {[%emt 0:00:01]} 60. Ke3 {[%emt 0:00:02]} Rc3+ {[%emt 0:00:00]} 61. Ke2 {
[%emt 0:00:00]} Rc2+ {[%emt 0:00:04]} 62. Kd3 {[%emt 0:00:01]} Rh2 {[%emt 0:00:
01]} 63. Ra4 {[%emt 0:00:05]} h3 {[%emt 0:00:02]} 64. Rah4 {[%emt 0:00:02]} Ra2
{[%emt 0:00:03]} 65. Rxh3 {[%emt 0:00:06]} Ra3+ {[%emt 0:00:00]} 66. Ke2 {
[%emt 0:00:01]} Ra2+ {[%emt 0:00:02]} 67. Ke3 {[%emt 0:00:02]} Ra3+ {[%emt 0:
00:00]} 68. Kf2 {[%emt 0:00:00]} Ra2+ {[%emt 0:00:05]} 69. Kg3 {[%emt 0:00:02]}
e4 {[%emt 0:00:01]} 70. R3h5# {[%emt 0:00:01]} 1-0

[Event "FIDE Women World Blitz 2021"]
[Site "Warsaw"]
[Date "2021.12.30"]
[Round "16.5"]
[White "Zairbek kyzy, Begimai"]
[Black "Strutinskaia, Galina"]
[Result "1-0"]
[ECO "B22"]
[WhiteElo "1701"]
[BlackElo "2188"]
[Annotator "NA"]
[PlyCount "97"]
[EventDate "2021.12.29"]
[EventType "swiss"]
[EventCountry "POL"]
[Tiebreak "Cut1 Buchholz"]
[SourceTitle "playchess.com"]
[Source "ChessBase"]
[SourceQuality "1"]
[TimeControl "180+2"]

1. e4 {[%emt 0:00:00]} c5 {[%emt 0:00:00]} 2. d4 {[%emt 0:00:01]} cxd4 {
[%emt 0:00:03]} 3. c3 Nf6 {[%emt 0:00:02]} 4. e5 {[%emt 0:00:00]} Nd5 5. Nf3
Nc6 {[%emt 0:00:03]} 6. cxd4 {[%emt 0:00:05]} d6 {[%emt 0:00:03]} 7. Bc4 {
[%emt 0:00:01]} e6 {[%emt 0:00:01]} 8. O-O {[%emt 0:00:02]} Be7 {[%emt 0:00:01]
} 9. Qe2 {[%emt 0:00:02]} O-O {[%emt 0:00:07]} 10. Nc3 {[%emt 0:00:01]} Nxc3 {
[%emt 0:00:08]} 11. bxc3 {[%emt 0:00:00]} dxe5 {[%emt 0:00:01]} 12. dxe5 {
[%emt 0:00:00]} Qa5 {[%emt 0:00:15]} 13. Bd2 {[%emt 0:00:28]} Rd8 {[%emt 0:00:
03]} 14. Rad1 {[%emt 0:00:06]} Bd7 {[%emt 0:00:04]} 15. Bd3 {[%emt 0:00:05]}
Be8 {[%emt 0:00:10]} 16. Qe4 {[%emt 0:00:02]} g6 {[%emt 0:00:05]} 17. Bb1 {
[%emt 0:00:02]} Qd5 {[%emt 0:00:18]} 18. Qf4 {[%emt 0:00:20]} Rac8 {[%emt 0:00:
14]} 19. h4 {[%emt 0:00:02]} Na5 {[%emt 0:00:10]} 20. h5 {[%emt 0:00:08]} Rc4 {
[%emt 0:00:13]} 21. Qg3 {[%emt 0:00:01]} Qc6 {[%emt 0:00:16]} 22. Nd4 {[%emt 0:
00:15]} Qc7 {[%emt 0:00:16]} 23. hxg6 {[%emt 0:00:02]} hxg6 {[%emt 0:00:01]}
24. Bxg6 {[%emt 0:00:38]} fxg6 {[%emt 0:00:02]} 25. Nxe6 {[%emt 0:00:01]} Qc8 {
[%emt 0:00:04]} 26. Nxd8 {[%emt 0:00:01]} Bxd8 {[%emt 0:00:05]} 27. Bf4 {
[%emt 0:00:31]} Be7 {[%emt 0:00:01]} 28. Rd3 {[%emt 0:00:05]} Qf5 {[%emt 0:00:
03]} 29. Rd4 {[%emt 0:00:09]} Bf7 {[%emt 0:00:08]} 30. Rfd1 {[%emt 0:00:02]}
Rxd4 {[%emt 0:00:01]} 31. Rxd4 {[%emt 0:00:06]} Nc6 {[%emt 0:00:02]} 32. Rd3 {
[%emt 0:00:06]} Be6 {[%emt 0:00:07]} 33. Qe3 {[%emt 0:00:04]} Kf7 {[%emt 0:00:
02]} 34. a4 {[%emt 0:00:02]} g5 {[%emt 0:00:03]} 35. Bg3 {[%emt 0:00:02]} Kg6 {
[%emt 0:00:01]} 36. Rd2 {[%emt 0:00:17]} b6 {[%emt 0:00:04]} 37. Re2 {[%emt 0:
00:03]} Na5 {[%emt 0:00:03]} 38. Qc1 {[%emt 0:00:07]} Nc4 {[%emt 0:00:01]} 39.
Qd1 {[%emt 0:00:02]} Qd3 {[%emt 0:00:02]} 40. Qxd3+ {[%emt 0:00:06]} Kf7 {
[%emt 0:00:08]} 41. Qe4 {[%emt 0:00:00]} Na5 {[%emt 0:00:03]} 42. f4 {[%emt 0:
00:00]} gxf4 {[%emt 0:00:01]} 43. Qxf4+ {[%emt 0:00:00]} Ke8 {[%emt 0:00:02]}
44. Rd2 {[%emt 0:00:00]} Nc4 {[%emt 0:00:01]} 45. Rd4 {[%emt 0:00:02]} Na5 {
[%emt 0:00:04]} 46. Kh2 {[%emt 0:00:01]} Nc6 {[%emt 0:00:00]} 47. Rd1 {[%emt 0:
00:01]} a5 {[%emt 0:00:02]} 48. Bh4 {[%emt 0:00:01]} Bc5 {[%emt 0:00:02]} 49.
Qf6 {[%emt 0:00:03]} 1-0

[Event "FIDE Women World Blitz 2021"]
[Site "Warsaw"]
[Date "2021.12.30"]
[Round "16.6"]
[White "Muzychuk, Anna"]
[Black "Stefanova, Antoaneta"]
[Result "1/2-1/2"]
[ECO "C28"]
[WhiteElo "2533"]
[BlackElo "2475"]
[Annotator "ChessBase"]
[PlyCount "83"]
[EventDate "2021.12.29"]
[EventType "swiss"]
[EventCountry "POL"]
[Tiebreak "Cut1 Buchholz"]
[SourceTitle "playchess.com"]
[Source "ChessBase"]
[SourceQuality "1"]
[TimeControl "180+2"]

1. e4 {[%emt 0:00:00]} e5 {[%emt 0:00:00]} 2. Nc3 {[%emt 0:00:01]} Nc6 {
[%emt 0:00:02]} 3. Bc4 {[%emt 0:00:01]} Nf6 {[%emt 0:00:18]} 4. d3 {[%emt 0:00:
01]} Na5 {[%emt 0:00:06]} 5. Nge2 {[%emt 0:00:19]} Nxc4 {[%emt 0:00:05]} 6.
dxc4 {[%emt 0:00:01]} Bc5 {[%emt 0:00:08]} 7. O-O {[%emt 0:00:14]} d6 {[%emt 0:
00:06]} 8. a3 {[%emt 0:00:03]} a6 {[%emt 0:00:06]} 9. Qd3 {[%emt 0:00:04]} h6 {
[%emt 0:00:09]} 10. Be3 {[%emt 0:00:04]} Bxe3 {[%emt 0:00:06]} 11. Qxe3 {
[%emt 0:00:01]} Be6 {[%emt 0:00:03]} 12. b3 {[%emt 0:00:15]} O-O {[%emt 0:00:
06]} 13. Rad1 {[%emt 0:00:02]} b6 {[%emt 0:00:03]} 14. h3 {[%emt 0:00:06]} Qe7
{[%emt 0:00:07]} 15. a4 {[%emt 0:00:04]} Nd7 {[%emt 0:00:05]} 16. Nd5 {[%emt 0:
00:10]} Bxd5 {[%emt 0:00:02]} 17. Rxd5 {[%emt 0:00:01]} f5 {[%emt 0:00:02]} 18.
exf5 {[%emt 0:00:03]} Rxf5 {[%emt 0:00:03]} 19. Ng3 {[%emt 0:00:03]} Rf7 {
[%emt 0:00:03]} 20. a5 {[%emt 0:00:06]} c6 {[%emt 0:00:17]} 21. Rd2 {[%emt 0:
00:08]} bxa5 {[%emt 0:00:08]} 22. Rfd1 {[%emt 0:00:23]} Rf6 {[%emt 0:00:20]}
23. Ne4 {[%emt 0:00:02]} Rg6 {[%emt 0:00:01]} 24. Rxd6 {[%emt 0:00:04]} Rxd6 {
[%emt 0:00:03]} 25. Rxd6 {[%emt 0:00:03]} a4 {[%emt 0:00:07]} 26. bxa4 {
[%emt 0:00:06]} Nf8 {[%emt 0:00:09]} 27. Rxc6 {[%emt 0:00:03]} Ne6 {[%emt 0:00:
04]} 28. Qg3 {[%emt 0:00:10]} Nd4 {[%emt 0:00:18]} 29. Qg6 {[%emt 0:00:17]}
Nxc6 {[%emt 0:00:03]} 30. Qxc6 {[%emt 0:00:00]} Rd8 {[%emt 0:00:03]} 31. Qxa6 {
[%emt 0:00:06]} Rd1+ {[%emt 0:00:12]} 32. Kh2 {[%emt 0:00:01]} Qf7 {[%emt 0:00:
01]} 33. Qc8+ {[%emt 0:00:07]} Kh7 {[%emt 0:00:01]} 34. Qg4 {[%emt 0:00:01]}
Ra1 {[%emt 0:00:05]} 35. c5 {[%emt 0:00:03]} Qf4+ {[%emt 0:00:14]} 36. Qxf4 {
[%emt 0:00:39]} exf4 {[%emt 0:00:01]} 37. c6 {[%emt 0:00:03]} Rxa4 {[%emt 0:00:
03]} 38. Nd6 {[%emt 0:00:01]} Ra7 {[%emt 0:00:05]} 39. Nb5 {[%emt 0:00:03]} Ra8
{[%emt 0:00:04]} 40. Nd6 {[%emt 0:00:03]} Ra7 {[%emt 0:00:02]} 41. Nb5 {
[%emt 0:00:01]} Ra8 {[%emt 0:00:01]} 42. Nd6 {[%emt 0:00:01]} 1/2-1/2

[Event "FIDE Women World Blitz 2021"]
[Site "Warsaw"]
[Date "2021.12.30"]
[Round "16.6"]
[White "Katkov, Michelle"]
[Black "Kazarian, Anna-Maja"]
[Result "0-1"]
[ECO "C06"]
[WhiteElo "1651"]
[BlackElo "2138"]
[Annotator "NA"]
[PlyCount "111"]
[EventDate "2021.12.29"]
[EventType "swiss"]
[EventCountry "POL"]
[Tiebreak "Cut1 Buchholz"]
[SourceTitle "playchess.com"]
[Source "ChessBase"]
[SourceQuality "1"]
[TimeControl "180+2"]

1. e4 {[%emt 0:00:00]} e6 {[%emt 0:00:00]} 2. d4 {[%emt 0:00:02]} d5 {[%emt 0:
00:01]} 3. Nd2 {[%emt 0:00:01]} Nf6 {[%emt 0:00:02]} 4. e5 {[%emt 0:00:00]}
Nfd7 {[%emt 0:00:01]} 5. Bd3 {[%emt 0:00:02]} c5 {[%emt 0:00:00]} 6. c3 {
[%emt 0:00:01]} Nc6 {[%emt 0:00:01]} 7. Ne2 {[%emt 0:00:01]} cxd4 {[%emt 0:00:
01]} 8. cxd4 {[%emt 0:00:02]} f6 {[%emt 0:00:01]} 9. exf6 {[%emt 0:00:01]} Qxf6
{[%emt 0:00:01]} 10. Nf3 {[%emt 0:00:02]} h6 {[%emt 0:00:02]} 11. O-O {[%emt 0:
00:02]} Bd6 {[%emt 0:00:01]} 12. Re1 {[%emt 0:00:35]} O-O {[%emt 0:00:01]} 13.
Bc2 {[%emt 0:00:15]} Rd8 {[%emt 0:00:10]} 14. Qd3 {[%emt 0:00:04]} Nf8 {
[%emt 0:00:01]} 15. a3 {[%emt 0:00:04]} Bd7 {[%emt 0:00:01]} 16. Ng3 {[%emt 0:
00:12]} Be8 {[%emt 0:00:01]} 17. Be3 {[%emt 0:00:25]} Rac8 {[%emt 0:00:08]} 18.
Rac1 {[%emt 0:00:03]} g5 {[%emt 0:00:34]} 19. Qd2 {[%emt 0:00:13]} g4 {[%emt 0:
01:16]} 20. Ne5 {[%emt 0:00:01]} Nxe5 {[%emt 0:00:02]} 21. dxe5 {[%emt 0:00:02]
} Bxe5 {[%emt 0:00:01]} 22. Bxh6 {[%emt 0:00:03]} Bxb2 {[%emt 0:00:06]} 23. Rb1
{[%emt 0:00:14]} Bc3 {[%emt 0:00:05]} 24. Qe3 {[%emt 0:00:21]} Bxe1 {[%emt 0:
00:04]} 25. Bg5 {[%emt 0:00:01]} Bxf2+ {[%emt 0:00:13]} 26. Kh1 {[%emt 0:00:05]
} Bxe3 {[%emt 0:00:15]} 27. Bxf6 {[%emt 0:00:01]} Rxc2 {[%emt 0:00:08]} 28.
Bxd8 {[%emt 0:00:01]} Bc6 {[%emt 0:00:05]} 29. Nf1 {[%emt 0:00:05]} Bc5 {
[%emt 0:00:10]} 30. Rd1 {[%emt 0:00:29]} d4 {[%emt 0:00:03]} 31. Nd2 {[%emt 0:
00:07]} d3 {[%emt 0:00:07]} 32. Bg5 {[%emt 0:00:03]} Bxa3 {[%emt 0:00:02]} 33.
Be3 {[%emt 0:00:08]} Bb4 {[%emt 0:00:01]} 34. Kg1 {[%emt 0:00:01]} Bxd2 {
[%emt 0:00:01]} 35. Bxd2 {[%emt 0:00:02]} b5 {[%emt 0:00:05]} 36. h4 {[%emt 0:
00:01]} b4 {[%emt 0:00:04]} 37. Bxb4 {[%emt 0:00:03]} Rxg2+ {[%emt 0:00:01]}
38. Kf1 {[%emt 0:00:01]} Be4 {[%emt 0:00:09]} 39. Re1 {[%emt 0:00:05]} Bd5 {
[%emt 0:00:09]} 40. h5 {[%emt 0:00:09]} Nh7 {[%emt 0:00:01]} 41. Rd1 {[%emt 0:
00:05]} Ng5 {[%emt 0:00:02]} 42. Rxd3 {[%emt 0:00:02]} Rh2 {[%emt 0:00:02]} 43.
Rg3 {[%emt 0:00:05]} Bf3 {[%emt 0:00:01]} 44. Rg1 {[%emt 0:00:04]} Ne4 {
[%emt 0:00:02]} 45. Ke1 {[%emt 0:00:03]} Re2+ {[%emt 0:00:01]} 46. Kf1 {
[%emt 0:00:02]} Rb2 {[%emt 0:00:01]} 47. Be1 {[%emt 0:00:02]} Kh7 {[%emt 0:00:
02]} 48. Bg3 {[%emt 0:00:04]} Rb1+ {[%emt 0:00:03]} 49. Be1 {[%emt 0:00:01]}
Nd2+ {[%emt 0:00:02]} 50. Kf2 {[%emt 0:00:00]} Ne4+ {[%emt 0:00:01]} 51. Ke3 {
[%emt 0:00:02]} Kh6 {[%emt 0:00:02]} 52. Kf4 {[%emt 0:00:01]} a5 {[%emt 0:00:
01]} 53. Ke5 {[%emt 0:00:03]} Kh7 {[%emt 0:00:01]} 54. Kxe6 {[%emt 0:00:02]} a4
{[%emt 0:00:01]} 55. Bf2 {[%emt 0:00:08]} Rxg1 {[%emt 0:00:02]} 56. Bxg1 {
[%emt 0:00:01]} 0-1

[Event "FIDE Women World Blitz 2021"]
[Site "Warsaw"]
[Date "2021.12.30"]
[Round "16.7"]
[White "Mamedjarova, Zeinab"]
[Black "Bodnaruk, Anastasia"]
[Result "1-0"]
[ECO "A48"]
[WhiteElo "2249"]
[BlackElo "2396"]
[Annotator "NA"]
[PlyCount "117"]
[EventDate "2021.12.29"]
[EventType "swiss"]
[EventCountry "POL"]
[Tiebreak "Cut1 Buchholz"]
[SourceTitle "playchess.com"]
[Source "ChessBase"]
[SourceQuality "1"]
[TimeControl "180+2"]

1. d4 {[%emt 0:00:00]} Nf6 {[%emt 0:00:00]} 2. Nf3 {[%emt 0:00:02]} g6 {
[%emt 0:00:01]} 3. e3 {[%emt 0:00:03]} Bg7 {[%emt 0:00:01]} 4. Be2 {[%emt 0:00:
02]} d6 {[%emt 0:00:01]} 5. O-O {[%emt 0:00:01]} O-O {[%emt 0:00:01]} 6. b3 {
[%emt 0:00:01]} c5 {[%emt 0:00:06]} 7. Bb2 {[%emt 0:00:02]} b6 {[%emt 0:00:05]}
8. d5 {[%emt 0:00:18]} e5 {[%emt 0:00:13]} 9. dxe6 {[%emt 0:00:05]} fxe6 {
[%emt 0:00:01]} 10. c4 {[%emt 0:00:06]} Bb7 {[%emt 0:00:05]} 11. Nc3 {[%emt 0:
00:07]} Qe7 {[%emt 0:00:01]} 12. a4 {[%emt 0:00:06]} Nc6 {[%emt 0:00:06]} 13.
Qd2 {[%emt 0:00:16]} Rad8 {[%emt 0:00:02]} 14. Rad1 {[%emt 0:00:01]} a6 {
[%emt 0:00:23]} 15. Qc2 {[%emt 0:00:05]} Nb4 {[%emt 0:00:04]} 16. Qb1 {[%emt 0:
00:02]} d5 {[%emt 0:00:07]} 17. cxd5 {[%emt 0:00:14]} exd5 {[%emt 0:00:02]} 18.
a5 {[%emt 0:00:22]} b5 {[%emt 0:00:06]} 19. Ba3 {[%emt 0:00:07]} Nc6 {[%emt 0:
00:14]} 20. Bb2 {[%emt 0:00:14]} d4 {[%emt 0:00:07]} 21. exd4 {[%emt 0:00:14]}
cxd4 {[%emt 0:00:01]} 22. Rfe1 {[%emt 0:00:01]} dxc3 {[%emt 0:00:12]} 23. Bc4+
{[%emt 0:00:03]} bxc4 {[%emt 0:00:01]} 24. Rxe7 {[%emt 0:00:00]} Nxe7 {[%emt 0:
00:17]} 25. Bxc3 {[%emt 0:00:03]} Rxd1+ {[%emt 0:00:35]} 26. Qxd1 {[%emt 0:00:
01]} cxb3 {[%emt 0:00:29]} 27. Qxb3+ {[%emt 0:00:01]} Bd5 28. Qb6 {[%emt 0:00:
09]} Rc8 {[%emt 0:00:11]} 29. Qb2 {[%emt 0:00:29]} Nh5 {[%emt 0:00:09]} 30.
Bxg7 {[%emt 0:00:07]} Nxg7 {[%emt 0:00:01]} 31. Nd4 {[%emt 0:00:06]} Ngf5 {
[%emt 0:00:05]} 32. h3 {[%emt 0:00:17]} Nxd4 {[%emt 0:00:01]} 33. Qxd4 {
[%emt 0:00:01]} Rc6 {[%emt 0:00:06]} 34. Qe5 {[%emt 0:00:02]} Re6 {[%emt 0:00:
03]} 35. Qb8+ {[%emt 0:00:01]} Kg7 {[%emt 0:00:01]} 36. Qb2+ {[%emt 0:00:01]}
Kh6 {[%emt 0:00:09]} 37. Qd2+ {[%emt 0:00:03]} g5 {[%emt 0:00:03]} 38. h4 {
[%emt 0:00:02]} Rg6 {[%emt 0:00:02]} 39. Qe3 {[%emt 0:00:01]} Nf5 {[%emt 0:00:
01]} 40. hxg5+ {[%emt 0:00:05]} Rxg5 {[%emt 0:00:01]} 41. Qh3+ {[%emt 0:00:04]}
Kg7 {[%emt 0:00:01]} 42. f3 {[%emt 0:00:03]} h5 {[%emt 0:00:02]} 43. Kf2 {
[%emt 0:00:04]} h4 {[%emt 0:00:03]} 44. Qh1 {[%emt 0:00:03]} Rg6 {[%emt 0:00:
04]} 45. Qa1+ {[%emt 0:00:02]} Kh7 {[%emt 0:00:01]} 46. Qe5 {[%emt 0:00:02]}
Be6 {[%emt 0:00:02]} 47. Qc7+ {[%emt 0:00:02]} Kh6 {[%emt 0:00:02]} 48. Qc1+ {
[%emt 0:00:03]} Kh5 {[%emt 0:00:02]} 49. Qc6 {[%emt 0:00:07]} Kh6 {[%emt 0:00:
04]} 50. Qxa6 {[%emt 0:00:01]} Nd4 {[%emt 0:00:03]} 51. Qb6 {[%emt 0:00:02]}
Nf5 {[%emt 0:00:01]} 52. a6 {[%emt 0:00:02]} Bc4 {[%emt 0:00:01]} 53. Qc5 {
[%emt 0:00:04]} Bxa6 {[%emt 0:00:03]} 54. Qxf5 {[%emt 0:00:01]} Bc4 {[%emt 0:
00:03]} 55. Qf4+ {[%emt 0:00:01]} Kh5 {[%emt 0:00:00]} 56. Qxc4 {[%emt 0:00:01]
} Kh6 {[%emt 0:00:01]} 57. Qxh4+ {[%emt 0:00:01]} Kg7 {[%emt 0:00:00]} 58. Qe7+
{[%emt 0:00:01]} Kh6 {[%emt 0:00:01]} 59. g4 {[%emt 0:00:02]} 1-0

[Event "FIDE Women World Blitz 2021"]
[Site "Warsaw"]
[Date "2021.12.30"]
[Round "16.7"]
[White "Smietanska, Wiktoria"]
[Black "Rudzinska, Michalina"]
[Result "0-1"]
[ECO "A33"]
[WhiteElo "1765"]
[BlackElo "1832"]
[Annotator "NA"]
[PlyCount "68"]
[EventDate "2021.12.29"]
[EventType "swiss"]
[EventCountry "POL"]
[Tiebreak "Cut1 Buchholz"]
[SourceTitle "playchess.com"]
[Source "ChessBase"]
[SourceQuality "1"]
[TimeControl "180+2"]

1. c4 {[%emt 0:00:01]} c5 {[%emt 0:00:02]} 2. Nf3 {[%emt 0:00:01]} Nc6 {
[%emt 0:00:01]} 3. Nc3 {[%emt 0:00:01]} Nf6 {[%emt 0:00:02]} 4. g3 {[%emt 0:00:
01]} e6 {[%emt 0:00:02]} 5. Bg2 {[%emt 0:00:01]} Be7 {[%emt 0:00:01]} 6. d4 {
[%emt 0:00:03]} cxd4 {[%emt 0:00:02]} 7. Nxd4 {[%emt 0:00:00]} a6 {[%emt 0:00:
01]} 8. O-O {[%emt 0:00:02]} O-O {[%emt 0:00:02]} 9. e4 {[%emt 0:00:02]} Qc7 {
[%emt 0:00:01]} 10. Be3 {[%emt 0:00:02]} d6 {[%emt 0:00:02]} 11. b3 {[%emt 0:
00:09]} Bd7 {[%emt 0:00:04]} 12. f4 {[%emt 0:00:01]} Nxd4 {[%emt 0:00:09]} 13.
Bxd4 {[%emt 0:00:07]} e5 {[%emt 0:00:01]} 14. Be3 {[%emt 0:00:14]} exf4 {
[%emt 0:00:03]} 15. Bxf4 {[%emt 0:00:06]} Qc5+ {[%emt 0:00:06]} 16. Kh1 {
[%emt 0:00:02]} b5 {[%emt 0:00:06]} 17. Nd5 {[%emt 0:00:25]} Nxd5 {[%emt 0:00:
02]} 18. cxd5 {[%emt 0:00:02]} Rac8 {[%emt 0:00:06]} 19. Rc1 {[%emt 0:00:06]}
Qa3 {[%emt 0:00:06]} 20. Qe2 {[%emt 0:00:05]} Bf6 {[%emt 0:00:04]} 21. Qd2 {
[%emt 0:00:42]} b4 {[%emt 0:00:06]} 22. Rfd1 {[%emt 0:00:13]} Bg4 {[%emt 0:00:
33]} 23. Rf1 {[%emt 0:00:09]} Bc3 {[%emt 0:00:14]} 24. Qc2 {[%emt 0:00:18]} Bb2
{[%emt 0:00:16]} 25. Qb1 {[%emt 0:00:22]} Bxc1 {[%emt 0:00:02]} 26. Bxc1 {
[%emt 0:00:04]} Qa5 {[%emt 0:00:02]} 27. Bb2 {[%emt 0:00:02]} Qb5 {[%emt 0:00:
08]} 28. Re1 {[%emt 0:00:08]} Be2 {[%emt 0:00:11]} 29. Ba1 {[%emt 0:00:14]} Qd3
{[%emt 0:00:10]} 30. Qb2 {[%emt 0:00:02]} f6 {[%emt 0:00:07]} 31. h4 {[%emt 0:
00:15]} Rc2 {[%emt 0:00:03]} 32. Qb1 {[%emt 0:00:01]} Bf3 {[%emt 0:00:05]} 33.
Bxf3 {[%emt 0:00:03]} Qxf3+ {[%emt 0:00:01]} 34. Kg1 {[%emt 0:00:01]} Qg2# {
[%emt 0:00:01]} 0-1

[Event "FIDE Women World Blitz 2021"]
[Site "Warsaw"]
[Date "2021.12.30"]
[Round "16.8"]
[White "Kashlinskaya, Alina"]
[Black "Buksa, Nataliya"]
[Result "1/2-1/2"]
[ECO "D37"]
[WhiteElo "2482"]
[BlackElo "2199"]
[Annotator "ChessBase"]
[PlyCount "101"]
[EventDate "2021.12.29"]
[EventType "swiss"]
[EventCountry "POL"]
[Tiebreak "Cut1 Buchholz"]
[SourceTitle "playchess.com"]
[Source "ChessBase"]
[SourceQuality "1"]
[TimeControl "180+2"]

1. d4 {[%emt 0:00:01]} d5 {[%emt 0:00:00]} 2. c4 {[%emt 0:00:00]} e6 {[%emt 0:
00:01]} 3. Nc3 {[%emt 0:00:01]} Be7 {[%emt 0:00:01]} 4. Nf3 {[%emt 0:00:02]}
Nf6 {[%emt 0:00:01]} 5. Bf4 {[%emt 0:00:01]} O-O {[%emt 0:00:01]} 6. e3 {
[%emt 0:00:01]} b6 {[%emt 0:00:00]} 7. Be2 {[%emt 0:00:05]} dxc4 {[%emt 0:00:
02]} 8. Bxc4 {[%emt 0:00:01]} Ba6 {[%emt 0:00:00]} 9. Qe2 {[%emt 0:00:01]} Bxc4
{[%emt 0:00:11]} 10. Qxc4 {[%emt 0:00:02]} c5 {[%emt 0:00:01]} 11. dxc5 {
[%emt 0:00:03]} Bxc5 {[%emt 0:00:01]} 12. O-O {[%emt 0:00:07]} Nbd7 {[%emt 0:
00:03]} 13. Rfd1 {[%emt 0:00:06]} Qc8 {[%emt 0:00:01]} 14. Rac1 {[%emt 0:00:11]
} Qb7 {[%emt 0:00:02]} 15. Bg3 {[%emt 0:00:25]} Rac8 {[%emt 0:00:03]} 16. Qh4 {
[%emt 0:00:01]} h6 {[%emt 0:00:31]} 17. h3 {[%emt 0:00:04]} a6 {[%emt 0:00:01]}
18. Ne5 {[%emt 0:00:10]} Rfd8 {[%emt 0:00:15]} 19. Ne2 {[%emt 0:00:18]} Nxe5 {
[%emt 0:00:51]} 20. Bxe5 {[%emt 0:00:02]} Be7 {[%emt 0:00:01]} 21. Rxd8+ {
[%emt 0:00:01]} Bxd8 {[%emt 0:00:03]} 22. Rd1 {[%emt 0:00:01]} Nd5 {[%emt 0:00:
17]} 23. Qg3 {[%emt 0:00:01]} f6 {[%emt 0:00:01]} 24. Bd4 {[%emt 0:00:19]} e5 {
[%emt 0:00:19]} 25. Bc3 {[%emt 0:00:00]} Be7 {[%emt 0:00:22]} 26. Qf3 {[%emt 0:
00:07]} Rd8 {[%emt 0:00:01]} 27. Ng3 {[%emt 0:00:03]} g6 {[%emt 0:00:03]} 28.
h4 {[%emt 0:00:15]} h5 {[%emt 0:00:03]} 29. Qe4 {[%emt 0:00:01]} Kg7 {[%emt 0:
00:15]} 30. a3 {[%emt 0:00:12]} Rd7 {[%emt 0:00:03]} 31. Be1 {[%emt 0:00:18]}
b5 {[%emt 0:00:01]} 32. Qf3 {[%emt 0:00:07]} Nb6 {[%emt 0:00:05]} 33. Rxd7 {
[%emt 0:00:08]} Qxd7 {[%emt 0:00:00]} 34. Ne4 {[%emt 0:00:01]} Nc4 {[%emt 0:00:
06]} 35. Bc3 {[%emt 0:00:01]} Qg4 {[%emt 0:00:09]} 36. Qxg4 hxg4 {[%emt 0:00:
01]} 37. Kh2 {[%emt 0:00:20]} Kf7 {[%emt 0:00:02]} 38. Kg3 {[%emt 0:00:01]} f5
{[%emt 0:00:01]} 39. Ng5+ {[%emt 0:00:01]} Bxg5 {[%emt 0:00:01]} 40. hxg5 {
[%emt 0:00:00]} Ke6 {[%emt 0:00:02]} 41. e4 {[%emt 0:00:04]} Nd6 {[%emt 0:00:
05]} 42. exf5+ {[%emt 0:00:03]} Kxf5 {[%emt 0:00:01]} 43. f3 {[%emt 0:00:08]}
gxf3 {[%emt 0:00:01]} 44. gxf3 {[%emt 0:00:02]} Nf7 {[%emt 0:00:02]} 45. Kf2 {
[%emt 0:00:17]} Nxg5 {[%emt 0:00:01]} 46. Ke3 {[%emt 0:00:01]} Ne6 {[%emt 0:00:
01]} 47. Ba5 {[%emt 0:00:02]} Nc5 {[%emt 0:00:06]} 48. Bd8 {[%emt 0:00:08]} Na4
{[%emt 0:00:01]} 49. b3 {[%emt 0:00:01]} Nc3 {[%emt 0:00:01]} 50. Be7 {[%emt 0:
00:04]} Nd5+ {[%emt 0:00:02]} 51. Kd3 1/2-1/2